bitfinex/quotes_BTCUSD_20250314
["timestamp","ask_amount","ask_price","bid_price","bid_amount"]
[1741919194891,0.33026081,82043.0,82042.0,0.05691444]
[1741919195095,0.33026081,82043.0,82042.0,0.00981444]
[1741919195309,0.33026081,82043.0,82042.0,0.004]
[1741919195884,0.33042981,82043.0,82042.0,0.004]
[1741919196090,0.33042981,82043.0,82042.0,0.002]
[1741919196316,0.33042981,82043.0,82042.0,0.004]
[1741919196927,0.33042981,82043.0,82042.0,0.00975331]
[1741919197127,0.33042981,82043.0,82042.0,0.004]
[1741919197356,0.33042981,82043.0,82042.0,0.00775331]
[1741919197557,0.33042981,82043.0,82042.0,0.003]
[1741919197770,0.33042981,82043.0,82042.0,0.00875331]
[1741919198015,0.33042981,82043.0,82042.0,0.14132]
[1741919198714,0.33042981,82043.0,82042.0,0.14032]
[1741919198967,0.543789,82038.0,82037.0,0.000338]
[1741919199166,0.543789,82038.0,82037.0,0.138658]
[1741919199376,0.543789,82038.0,82037.0,0.14441131]
[1741919199939,0.3,82038.0,82037.0,0.23750031]
[1741919200391,0.3,82038.0,82037.0,0.48129231]
[1741919200801,0.3,82038.0,82037.0,0.48329231]
[1741919201243,0.3,82038.0,82037.0,0.48129231]
[1741919201449,0.3,82038.0,82037.0,0.48429231]
[1741919201640,0.3,82038.0,82037.0,0.48629231]
[1741919201783,0.3,82038.0,82037.0,0.48429231]
[1741919201996,0.3,82038.0,82037.0,0.48129231]
[1741919202295,0.3,82038.0,82037.0,0.48329231]
[1741919202851,0.3,82038.0,82037.0,0.23031131]
[1741919205882,0.3,82038.0,82037.0,0.24250031]
[1741919207091,0.3,82038.0,82037.0,0.23950031]
[1741919207493,0.3,82038.0,82037.0,0.24250031]
[1741919208382,0.3,82038.0,82037.0,0.24050031]
[1741919208608,0.243779,82042.0,82037.0,0.24050031]
[1741919208815,0.243779,82042.0,82037.0,0.24350031]
[1741919209016,0.243779,82042.0,82037.0,0.48429031]
[1741919209265,0.243779,82042.0,82037.0,0.23750031]
[1741919209465,0.255967,82042.0,82037.0,0.23950031]
[1741919209676,0.255967,82042.0,82037.0,0.23750031]
[1741919210023,0.00398122,82043.0,82038.0,0.012189]
[1741919210472,0.00398122,82043.0,82039.0,0.00575755]
[1741919210937,0.25994522,82043.0,82039.0,0.00575755]
[1741919211133,0.255967,82042.0,82037.0,0.476537]
[1741919211333,0.255967,82042.0,82038.0,0.00575755]
[1741919211602,0.012189,82041.0,82038.0,0.00675755]
[1741919212129,0.07373286,82041.0,82038.0,0.00575755]
[1741919212332,0.255974,82040.0,82038.0,0.00575755]
[1741919212551,0.012189,82040.0,82038.0,0.00675755]
[1741919213061,0.08592186,82041.0,82038.0,0.00675755]
[1741919213227,0.012188,82042.0,82038.0,0.00675755]
[1741919213557,0.25994522,82043.0,82038.0,0.00575755]
[1741919213814,0.00398122,82043.0,82040.0,0.243783]
[1741919214020,0.00398122,82043.0,82038.0,0.00975755]
[1741919214221,0.00398122,82043.0,82039.0,0.00575755]
[1741919215371,0.24775822,82043.0,82039.0,0.00675755]
[1741919215888,0.255968,82042.0,82039.0,0.00675755]
[1741919216215,0.255968,82042.0,82039.0,0.00775755]
[1741919216860,0.255968,82042.0,82039.0,0.00675755]
[1741919217265,0.012188,82042.0,82039.0,0.00675755]
[1741919217435,0.012188,82042.0,82039.0,0.00775755]
[1741919219534,0.0123571,82042.0,82039.0,0.00775755]
[1741919219741,0.012189,82040.0,82039.0,0.00775755]
[1741919220328,0.24378,82041.0,82039.0,0.00775755]
[1741919220535,0.24378,82041.0,82039.0,0.00675755]
[1741919220772,0.012189,82040.0,82039.0,0.00675755]
[1741919221400,0.012189,82040.0,82039.0,0.00575755]
[1741919221606,0.012189,82040.0,82037.0,0.138658]
[1741919221719,0.255975,82039.0,82037.0,0.138658]
[1741919221923,0.255975,82039.0,82038.0,0.00575755]
[1741919223676,0.255975,82039.0,82038.0,0.00675755]
[1741919224743,0.255975,82039.0,82038.0,0.00775755]
[1741919225428,0.2561361,82042.0,82038.0,0.00775755]
[1741919225656,0.255971,82041.0,82039.0,0.13828]
[1741919225827,0.012189,82040.0,82039.0,0.13828]
[1741919226035,0.012189,82040.0,82039.0,0.14404216]
[1741919226806,0.012189,82040.0,82039.0,0.14504216]
[1741919227751,0.312189,82040.0,82039.0,0.14504216]
[1741919229008,0.0001691,82042.0,82041.0,0.012189]
[1741919229213,0.0001691,82042.0,82041.0,0.13480776]
[1741919229402,0.0001691,82042.0,82041.0,0.13935948]
[1741919230145,0.0001691,82042.0,82041.0,0.14157824]
[1741919230347,0.0001691,82042.0,82041.0,0.14035948]
[1741919230554,0.0001691,82042.0,82041.0,0.14435948]
[1741919230733,0.0001691,82042.0,82041.0,0.14557824]
[1741919230931,0.0001691,82042.0,82041.0,0.15057824]
[1741919237337,0.01927384,82042.0,82041.0,0.15057824]
[1741919238582,0.01927384,82042.0,82041.0,0.14935948]
[1741919242760,0.01927384,82042.0,82041.0,0.92339948]
[1741919244894,0.01927384,82042.0,82041.0,0.92373768]
[1741919245291,0.01927384,82042.0,82041.0,0.91373768]
[1741919245661,0.01927384,82042.0,82041.0,0.91873768]
[1741919245835,0.01927384,82042.0,82041.0,0.92373768]
[1741919252454,0.01927384,82042.0,82041.0,1.06197768]
[1741919260525,0.01927384,82042.0,82041.0,1.05697768]
[1741919260730,0.01927384,82042.0,82041.0,1.06197768]
[1741919260954,0.01927384,82042.0,82041.0,1.05697768]
[1741919261338,0.01927384,82042.0,82041.0,1.06197768]
[1741919261989,0.01927384,82042.0,82041.0,1.05697768]
[1741919262353,0.01927384,82042.0,82041.0,1.05197768]
[1741919262765,0.01927384,82042.0,82041.0,1.05697768]
[1741919262972,0.01927384,82042.0,82041.0,1.06197768]
[1741919264984,0.255921,82057.0,82051.0,0.243749]
[1741919265170,0.25633197,82057.0,82052.0,0.00544247]
[1741919265371,0.25633197,82057.0,82051.0,0.255936]
[1741919265815,0.25633197,82057.0,82052.0,0.00544247]
[1741919265987,0.24414597,82057.0,82052.0,0.325045]
[1741919266195,0.25633197,82057.0,82053.0,0.00544247]
[1741919266393,0.06347202,82055.0,82053.0,0.00544247]
[1741919266598,0.06347202,82055.0,82047.0,0.25595]
[1741919266599,0.08566902,82055.0,82051.0,0.001]
[1741919266797,0.08566902,82055.0,82052.0,0.00544247]
[1741919266997,0.08566902,82055.0,82049.0,0.012187]
[1741919267193,0.08566902,82055.0,82052.0,0.001]
[1741919267394,0.07152247,82057.0,82052.0,0.001]
[1741919267652,0.012186,82055.0,82052.0,0.001]
[1741919267943,0.012186,82055.0,82053.0,0.00544247]
[1741919268281,0.012186,82056.0,82053.0,0.00544247]
[1741919269146,0.012186,82056.0,82053.0,0.00744247]
[1741919269913,0.03092659,82056.0,82053.0,0.00844247]
[1741919270488,0.03092659,82056.0,82053.0,0.00644247]
[1741919270803,0.03092659,82056.0,82053.0,0.00744247]
[1741919271351,0.04166939,82056.0,82053.0,0.00744247]
[1741919272101,0.28540539,82056.0,82053.0,0.00744247]
[1741919272637,0.255928,82054.0,82053.0,0.00744247]
[1741919272815,0.255928,82054.0,82053.0,0.14568247]
[1741919272975,0.255928,82054.0,82053.0,0.14024]
[1741919273173,0.255928,82054.0,82053.0,0.14568247]
[1741919273398,0.255928,82054.0,82053.0,0.14024]
[1741919273575,0.255928,82054.0,82053.0,0.13924]
[1741919273952,0.26401254,82056.0,82053.0,0.14468414]
[1741919274132,0.255928,82054.0,82053.0,0.14568414]
[1741919274332,0.255928,82054.0,82053.0,0.14468414]
[1741919274534,0.255928,82054.0,82053.0,0.13924]
[1741919274691,0.255928,82054.0,82053.0,0.14024]
[1741919275332,0.255928,82054.0,82053.0,0.13924]
[1741919275733,0.255928,82054.0,82053.0,0.14568414]
[1741919275954,0.255928,82054.0,82053.0,0.14468414]
[1741919276333,0.255928,82054.0,82053.0,0.14568414]
[1741919277374,0.255928,82054.0,82053.0,0.14468414]
[1741919277573,0.255928,82054.0,82053.0,0.14568414]
[1741919278800,0.0312919,82054.0,82053.0,0.14568414]
[1741919279173,0.0312919,82054.0,82053.0,0.14024]
[1741919280779,0.0191049,82054.0,82053.0,0.14024]
[1741919281081,0.0191049,82054.0,82053.0,0.14568414]
[1741919282954,0.0312919,82054.0,82053.0,0.14568414]
[1741919283334,0.0191049,82054.0,82053.0,0.14568414]
[1741919285495,0.01882766,82054.0,82053.0,0.14568414]
[1741919287941,0.01882766,82054.0,82053.0,0.52831514]
[1741919288146,0.0001691,82057.0,82056.0,0.333721]
[1741919288548,0.0001691,82057.0,82056.0,0.33917017]
[1741919289381,0.3009691,82069.0,82063.0,0.2559]
[1741919289382,0.02857145,82067.0,82063.0,0.2559]
[1741919289602,0.00026431,82064.0,82063.0,0.3389]
[1741919289987,0.00026431,82064.0,82063.0,0.34434917]
[1741919290608,0.00026431,82064.0,82063.0,0.34634917]
[1741919291221,0.00026431,82064.0,82063.0,0.34934917]
[1741919292846,0.00026431,82064.0,82063.0,0.39894917]
[1741919293254,0.00026431,82064.0,82063.0,0.42389821]
[1741919293682,0.00026431,82064.0,82063.0,0.42089821]
[1741919294022,0.00026431,82064.0,82063.0,0.41889821]
[1741919294157,0.00026431,82064.0,82063.0,0.42189821]
[1741919294361,0.00026431,82064.0,82063.0,0.42489821]
[1741919295265,0.00026431,82064.0,82063.0,0.84439821]
[1741919295675,0.00026431,82064.0,82063.0,0.83839821]
[1741919295871,0.00026431,82064.0,82063.0,0.84439821]
[1741919296284,0.00026431,82064.0,82063.0,0.84139821]
[1741919296489,0.00026431,82064.0,82063.0,0.83839821]
[1741919296694,0.00026431,82064.0,82063.0,0.85039821]
[1741919296947,0.00026431,82064.0,82063.0,0.84439821]
[1741919297226,0.00026431,82064.0,82063.0,0.85039821]
[1741919297948,0.00026431,82064.0,82063.0,0.84439821]
[1741919298851,0.02767527,82077.0,82063.0,0.84439821]
[1741919298852,0.01909999,82093.0,82068.0,0.012185]
[1741919299051,0.000169,82099.0,82093.0,0.012181]
[1741919299251,0.000169,82099.0,82093.0,0.470207]
[1741919299428,0.00117509,82094.0,82093.0,0.52320126]
[1741919299752,0.02027088,82094.0,82093.0,0.52320126]
[1741919300369,0.02027088,82094.0,82093.0,0.52920126]
[1741919300719,0.01527088,82094.0,82093.0,0.53520126]
[1741919301136,0.02781143,82097.0,82096.0,0.255797]
[1741919301339,0.000169,82099.0,82098.0,0.255791]
[1741919301761,6.81e-05,82099.0,82098.0,0.255791]
[1741919301961,6.81e-05,82099.0,82098.0,0.43789907]
[1741919302124,6.81e-05,82099.0,82098.0,0.40889053]
[1741919303191,6.81e-05,82099.0,82098.0,0.55973053]
[1741919303590,6.81e-05,82099.0,82098.0,0.55373053]
[1741919304001,6.81e-05,82099.0,82098.0,0.55873053]
[1741919304243,6.81e-05,82099.0,82098.0,0.56473053]
[1741919304417,6.81e-05,82099.0,82098.0,0.56517053]
[1741919304820,6.81e-05,82099.0,82098.0,0.55917053]
[1741919305841,6.81e-05,82099.0,82098.0,0.55417053]
[1741919306245,6.81e-05,82099.0,82098.0,0.56617053]
[1741919306450,6.81e-05,82099.0,82098.0,0.56017053]
[1741919307104,0.0209463,82104.0,82098.0,0.56017053]
[1741919307105,0.01374935,82104.0,82103.0,0.012179]
[1741919307291,3.5e-07,82104.0,82103.0,0.378475]
[1741919307591,0.07685,82150.0,82145.0,0.012173]
[1741919307903,0.00087508,82149.0,82148.0,0.012173]
[1741919308113,0.02956008,82149.0,82148.0,0.161093]
[1741919308321,0.02956008,82149.0,82148.0,0.15450616]
[1741919308322,0.00087508,82149.0,82148.0,0.15450616]
[1741919308520,0.31304808,82149.0,82148.0,0.15450616]
[1741919308740,0.01304808,82149.0,82148.0,0.15450616]
[1741919308902,0.33213078,82149.0,82148.0,0.14924]
[1741919309103,0.36052094,82149.0,82148.0,0.14924]
[1741919309890,0.34143824,82149.0,82148.0,0.14924]
[1741919310097,0.34143824,82149.0,82127.0,0.2557]
[1741919310098,0.255682,82133.0,82124.0,0.1273]
[1741919310305,0.255682,82133.0,82115.0,0.243558]
[1741919310306,0.3,82130.0,82116.0,0.243554]
[1741919310509,0.21838223,82139.0,82112.0,0.0786]
[1741919310510,0.243477,82144.0,82128.0,0.14948]
[1741919310731,0.012173,82147.0,82132.0,0.012175]
[1741919310894,0.3009274,82149.0,82148.0,0.001]
[1741919310895,0.34834965,82149.0,82148.0,0.001]
[1741919311318,0.34834965,82149.0,82148.0,0.256636]
[1741919311524,0.34834965,82149.0,82148.0,0.234636]
[1741919311917,0.04834965,82149.0,82148.0,0.246809]
[1741919312378,0.012173,82144.0,82139.0,0.02451968]
[1741919312509,0.255668,82138.0,82131.0,0.02469056]
[1741919312882,0.012174,82138.0,82132.0,0.162695]
[1741919313158,0.243475,82144.0,82137.0,0.055]
[1741919313367,0.012174,82142.0,82140.0,0.05]
[1741919313575,0.255648,82144.0,82140.0,0.05]
[1741919313750,0.02895768,82149.0,82140.0,0.05]
[1741919313956,0.01908473,82142.0,82140.0,0.05]
[1741919314170,0.01949504,82142.0,82140.0,0.05]
[1741919314751,0.06486064,82149.0,82140.0,0.05]
[1741919314957,0.012173,82148.0,82140.0,0.05]
[1741919315151,0.012173,82148.0,82140.0,0.20092]
[1741919315366,0.31223298,82149.0,82140.0,0.20092]
[1741919315967,0.31323298,82149.0,82140.0,0.20092]
[1741919316166,0.02990487,82149.0,82140.0,0.20092]
[1741919316361,0.02990487,82149.0,82141.0,0.05]
[1741919316567,0.28553787,82149.0,82141.0,0.05]
[1741919317207,0.0001689,82148.0,82141.0,0.05]
[1741919317442,0.255638,82147.0,82141.0,0.05]
[1741919317570,0.012173,82147.0,82141.0,0.05]
[1741919317917,0.012173,82147.0,82142.0,0.00548733]
[1741919318687,0.25564,82147.0,82142.0,0.00548733]
[1741919318890,0.57019085,82143.0,82142.0,0.00548733]
[1741919319088,0.57019085,82143.0,82124.0,0.15084]
[1741919319089,0.255691,82130.0,82124.0,0.15084]
[1741919319317,0.255691,82130.0,82129.0,0.00893731]
[1741919319497,0.555691,82130.0,82129.0,0.00893731]
[1741919319725,0.574779,82130.0,82129.0,0.00893731]
[1741919319929,0.69473989,82130.0,82129.0,0.0028578]
[1741919320825,0.69473989,82130.0,82129.0,0.0038578]
[1741919321099,0.70395157,82130.0,82129.0,0.0038578]
[1741919322189,0.70395157,82130.0,82129.0,0.0058578]
[1741919322402,0.58399068,82130.0,82129.0,0.0058578]
[1741919323254,0.34047468,82130.0,82129.0,0.0058578]
[1741919323464,0.32829968,82130.0,82129.0,0.0058578]
[1741919323660,0.32829968,82130.0,82123.0,0.2395698]
[1741919323661,0.3,82129.0,82123.0,0.2395698]
[1741919323866,0.3,82129.0,82121.0,0.255718]
[1741919324064,0.3,82129.0,82122.0,0.012177]
[1741919324520,0.012176,82128.0,82118.0,0.067177]
[1741919324720,0.312176,82124.0,82118.0,0.05]
[1741919324925,0.3,82120.0,82118.0,0.05]
[1741919325128,0.255734,82117.0,82112.0,0.05]
[1741919325344,0.012177,82116.0,82115.0,0.05]
[1741919325589,0.3,82118.0,82116.0,0.055]
[1741919325760,0.3,82118.0,82117.0,0.05]
[1741919325972,0.3,82118.0,82117.0,0.062177]
[1741919326377,0.3,82118.0,82117.0,0.138277]
[1741919326602,0.3,82129.0,82120.0,0.012177]
[1741919326775,0.312175,82129.0,82120.0,0.012177]
[1741919326971,0.01908942,82121.0,82120.0,0.255721]
[1741919327820,0.01908942,82121.0,82120.0,0.305721]
[1741919328983,0.01908942,82121.0,82120.0,0.313721]
[1741919330841,0.01908942,82121.0,82120.0,0.291721]
[1741919331279,0.01908942,82121.0,82120.0,0.308898]
[1741919332514,0.01908942,82121.0,82120.0,0.063]
[1741919332922,0.03126642,82121.0,82120.0,0.1646432]
[1741919333149,0.33126642,82121.0,82120.0,0.1646432]
[1741919333873,0.33126642,82121.0,82120.0,0.15884]
[1741919334951,0.312177,82121.0,82120.0,0.15884]
[1741919335554,0.43213789,82121.0,82120.0,0.15884]
[1741919336365,0.312177,82121.0,82120.0,0.15884]
[1741919339308,0.312177,82121.0,82120.0,0.14484]
[1741919339522,0.33126607,82121.0,82120.0,0.14484]
[1741919340046,0.31908907,82121.0,82120.0,0.14984]
[1741919340603,0.31908907,82121.0,82120.0,0.15563887]
[1741919341428,0.57480907,82121.0,82120.0,0.15563887]
[1741919341945,0.57480907,82121.0,82120.0,0.14984]
[1741919342893,0.555731,82117.0,82116.0,0.00074811]
[1741919343104,0.555731,82117.0,82116.0,0.20030811]
[1741919343314,0.555731,82117.0,82116.0,0.20610688]
[1741919343517,0.555731,82117.0,82116.0,0.15610688]
[1741919343757,0.555731,82117.0,82116.0,0.20610688]
[1741919344376,0.555731,82117.0,82116.0,0.15610688]
[1741919344615,0.3,82117.0,82116.0,0.21110688]
[1741919344814,0.3,82117.0,82116.0,0.54754088]
[1741919345063,0.3,82117.0,82116.0,0.29180688]
[1741919345202,0.3,82117.0,82116.0,0.29680688]
[1741919345616,0.3,82117.0,82116.0,0.30180688]
[1741919347137,0.543554,82117.0,82116.0,0.30180688]
[1741919347537,0.59097591,82117.0,82116.0,0.01654688]
[1741919347897,0.59097591,82117.0,82116.0,0.01074811]
[1741919347898,0.61006654,82117.0,82116.0,0.01074811]
[1741919348609,0.62460739,82117.0,82116.0,0.01074811]
[1741919348800,0.62460739,82117.0,82116.0,0.00574811]
[1741919348956,0.62460739,82117.0,82116.0,0.00274811]
[1741919349360,0.62460739,82117.0,82116.0,0.00474811]
[1741919349559,0.255816,82090.0,82089.0,0.0483]
[1741919349763,0.255816,82090.0,82088.0,0.07452515]
[1741919349764,0.312181,82089.0,82088.0,0.02452515]
[1741919349966,0.255837,82083.0,82082.0,0.8234]
[1741919350342,0.255837,82083.0,82082.0,0.82347508]
[1741919350762,0.255837,82083.0,82082.0,0.77347508]
[1741919350980,0.255837,82083.0,82082.0,0.82347508]
[1741919351387,0.555837,82083.0,82082.0,0.76327508]
[1741919351802,0.59181627,82083.0,82082.0,0.76327508]
[1741919352050,0.7040724,82083.0,82082.0,0.76327508]
[1741919352255,0.7040724,82083.0,82082.0,0.76927508]
[1741919352434,0.7040724,82083.0,82082.0,7.508e-05]
[1741919352812,0.7040724,82083.0,82082.0,0.00507508]
[1741919353008,0.7040724,82083.0,82082.0,7.508e-05]
[1741919353227,0.7050724,82083.0,82082.0,0.00307508]
[1741919353434,0.71961325,82083.0,82082.0,0.00307508]
[1741919353758,0.71961325,82083.0,82082.0,7.508e-05]
[1741919353759,0.71861325,82083.0,82082.0,7.508e-05]
[1741919353961,0.71861325,82083.0,82082.0,0.00207508]
[1741919354551,0.71861325,82083.0,82082.0,8e-08]
[1741919354955,0.71861325,82083.0,82060.0,0.77348]
[1741919354956,0.555907,82061.0,82060.0,0.77348]
[1741919355160,0.012186,82055.0,82054.0,0.0996]
[1741919355366,0.3,82056.0,82054.0,0.09965998]
[1741919355729,0.255924,82055.0,82054.0,0.09965998]
[1741919355945,0.243667,82079.0,82065.0,0.012185]
[1741919356147,0.012184,82073.0,82070.0,0.05]
[1741919356279,0.3,82071.0,82070.0,0.05]
[1741919356474,0.312184,82071.0,82070.0,0.05]
[1741919356726,0.012184,82071.0,82070.0,0.05]
[1741919357129,0.255872,82072.0,82070.0,0.05]
[1741919357338,0.012183,82078.0,82071.0,0.012184]
[1741919357542,0.247668,82079.0,82073.0,0.255868]
[1741919357691,0.243674,82077.0,82072.0,0.017184]
[1741919357894,0.004,82079.0,82074.0,0.012184]
[1741919358101,0.004,82079.0,82077.0,0.05]
[1741919358505,0.243664,82080.0,82077.0,0.05]
[1741919358712,0.0190997,82079.0,82077.0,0.05]
[1741919359186,0.0190997,82079.0,82077.0,0.0955]
[1741919359642,0.255853,82078.0,82077.0,0.0955]
[1741919359980,0.255853,82078.0,82077.0,0.05]
[1741919359981,0.3405517,82078.0,82077.0,0.05]
[1741919360182,0.3405517,82078.0,82071.0,0.05]
[1741919360183,0.255872,82072.0,82071.0,0.05]
[1741919360600,0.255872,82072.0,82071.0,0.05568918]
[1741919362065,0.3,82073.0,82071.0,0.05568918]
[1741919362244,0.243688,82072.0,82071.0,0.05568918]
[1741919362646,0.255888,82067.0,82066.0,0.1295]
[1741919362845,0.255888,82067.0,82066.0,0.0795]
[1741919363021,0.255888,82067.0,82066.0,0.08518918]
[1741919363392,0.27498947,82067.0,82066.0,0.0795]
[1741919364112,0.27498947,82067.0,82066.0,0.13517389]
[1741919364557,0.27498947,82067.0,82066.0,0.08517389]
[1741919365036,0.27498947,82067.0,82066.0,0.13517389]
[1741919365691,0.26280447,82067.0,82066.0,0.13817389]
[1741919365920,0.01910147,82067.0,82066.0,0.13817389]
[1741919366089,0.26280447,82067.0,82066.0,0.13817389]
[1741919366287,0.27498947,82067.0,82066.0,0.13817389]
[1741919366817,0.57498947,82067.0,82066.0,0.14217389]
[1741919367142,0.57498947,82067.0,82066.0,0.1365]
[1741919367967,0.57498947,82067.0,82066.0,0.007]
[1741919368414,0.012185,82068.0,82066.0,0.057]
[1741919368644,0.012185,82068.0,82067.0,0.05]
[1741919368815,0.012185,82068.0,82067.0,0.05567229]
[1741919369022,0.012185,82068.0,82067.0,0.05]
[1741919369729,0.255888,82067.0,82066.0,0.006]
[1741919369931,0.255888,82067.0,82066.0,0.053]
[1741919370323,0.012185,82066.0,82065.0,0.096]
[1741919370521,0.012185,82066.0,82059.0,0.0804]
[1741919370522,0.25591,82060.0,82059.0,0.0804]
[1741919370856,0.25591,82060.0,82059.0,0.08608064]
[1741919372236,0.55591,82060.0,82059.0,0.00568064]
[1741919372410,0.67587089,82060.0,82059.0,0.00568064]
[1741919372649,0.67587089,82060.0,82059.0,0.004]
[1741919372877,0.55591,82060.0,82059.0,0.004]
[1741919373103,0.57501359,82060.0,82059.0,0.004]
[1741919373358,0.255921,82056.0,82055.0,0.0498]
[1741919375356,0.255921,82056.0,82055.0,0.0998]
[1741919376006,0.255921,82056.0,82055.0,0.054]
[1741919376239,0.255921,82056.0,82055.0,0.004]
[1741919376441,0.555921,82056.0,82055.0,0.004]
[1741919377151,0.556921,82056.0,82055.0,0.007]
[1741919377939,0.312186,82055.0,82053.0,0.0003382]
[1741919379347,0.312186,82055.0,82054.0,0.00439838]
[1741919380267,0.313186,82055.0,82054.0,0.00739838]
[1741919380840,0.001,82055.0,82054.0,0.00739838]
[1741919381010,0.001,82055.0,82054.0,0.08729838]
[1741919381215,0.013186,82055.0,82054.0,0.14308336]
[1741919381615,0.013186,82055.0,82054.0,0.13729838]
[1741919382045,0.013186,82055.0,82054.0,0.14308336]
[1741919382705,0.013186,82055.0,82054.0,0.09308336]
[1741919382973,0.013186,82055.0,82054.0,0.14308336]
[1741919385683,0.008426,82055.0,82054.0,0.14308336]
[1741919390673,0.0085953,82055.0,82054.0,0.14308336]
[1741919393302,0.0085953,82055.0,82054.0,0.09308336]
[1741919393470,0.0085953,82055.0,82054.0,0.14308336]
[1741919394383,0.0001693,82055.0,82054.0,0.14808336]
[1741919394718,0.0001693,82055.0,82054.0,0.19588336]
[1741919395424,0.0001693,82055.0,82054.0,0.20807036]
[1741919397085,0.0001693,82055.0,82054.0,0.19588336]
[1741919398140,0.0001693,82055.0,82054.0,0.22043672]
[1741919400475,0.2439073,82055.0,82054.0,0.22043672]
[1741919401375,0.26300954,82055.0,82054.0,0.22043672]
[1741919401592,0.01927154,82055.0,82054.0,0.22043672]
[1741919403566,0.01927154,82055.0,82054.0,0.23262372]
[1741919407039,0.0001693,82067.0,82066.0,0.067185]
[1741919407232,0.0001693,82067.0,82066.0,0.58620936]
[1741919407435,0.0001693,82067.0,82066.0,0.584991]
[1741919408226,0.0001692,82078.0,82077.0,0.383156]
[1741919408428,0.0001692,82078.0,82077.0,1.157116]
[1741919408632,0.0001692,82078.0,82077.0,1.212116]
[1741919409832,0.243644,82087.0,82086.0,0.05]
[1741919410034,0.243644,82087.0,82086.0,0.27394]
[1741919410543,0.26274033,82087.0,82086.0,0.27394]
[1741919411035,0.26274033,82087.0,82086.0,0.27399998]
[1741919411241,0.29413352,82087.0,82086.0,0.27399998]
[1741919411458,0.05048952,82087.0,82086.0,0.27399998]
[1741919413990,0.05048952,82087.0,82086.0,0.27899998]
[1741919414207,0.06284082,82087.0,82086.0,0.27899998]
[1741919414581,0.06284082,82087.0,82086.0,0.05005998]
[1741919414785,0.04374449,82087.0,82086.0,5.998e-05]
[1741919415182,0.46370538,82087.0,82086.0,5.998e-05]
[1741919416308,0.34374449,82087.0,82086.0,5.998e-05]
[1741919418142,0.36284439,82087.0,82086.0,5.998e-05]
[1741919418877,0.012186,82060.0,82059.0,0.05]
[1741919419027,0.012186,82060.0,82059.0,0.055]
[1741919419635,0.03128872,82060.0,82059.0,0.055]
[1741919420163,0.03128872,82060.0,82059.0,0.058]
[1741919420654,0.01910272,82060.0,82059.0,0.058]
[1741919421046,0.01910272,82060.0,82059.0,0.062]
[1741919421246,0.03128872,82060.0,82059.0,0.062]
[1741919422435,0.03128872,82060.0,82059.0,0.057]
[1741919422910,0.03128872,82060.0,82059.0,0.062]
[1741919424019,0.01910272,82060.0,82059.0,0.062]
[1741919424653,0.01910272,82060.0,82059.0,0.074186]
[1741919425019,0.01910272,82060.0,82059.0,0.154686]
[1741919425375,0.01910272,82060.0,82059.0,0.1425]
[1741919426802,0.01910272,82060.0,82059.0,0.1428384]
[1741919427964,0.03128872,82060.0,82059.0,0.1428384]
[1741919431356,0.03128872,82060.0,82059.0,0.1485183]
[1741919431729,0.03128872,82060.0,82059.0,0.0630183]
[1741919431937,0.33128872,82060.0,82059.0,0.0130183]
[1741919432665,0.312186,82060.0,82059.0,0.0130183]
[1741919432868,0.312186,82060.0,82059.0,0.0100183]
[1741919433119,0.313186,82060.0,82059.0,0.0100183]
[1741919433235,0.313186,82060.0,82059.0,0.0060183]
[1741919433453,0.312186,82060.0,82059.0,0.0060183]
[1741919433807,0.313186,82060.0,82059.0,0.0060183]
[1741919433965,0.34921174,82060.0,82059.0,0.0060183]
[1741919434181,0.312186,82060.0,82059.0,0.0060183]
[1741919434567,0.314186,82060.0,82059.0,0.0060183]
[1741919434792,0.316186,82060.0,82059.0,0.0060183]
[1741919434971,0.316186,82060.0,82059.0,0.0003384]
[1741919435869,0.33528985,82060.0,82059.0,0.0003384]
[1741919436843,0.316186,82060.0,82059.0,0.0003384]
[1741919437249,0.316186,82060.0,82059.0,0.0003384]
[1741919439550,0.004,82060.0,82059.0,0.0003384]
[1741919439757,0.016186,82060.0,82059.0,0.0003384]
[1741919441061,0.11367867,82060.0,82059.0,0.0003384]
[1741919441492,0.03528957,82060.0,82059.0,0.0003384]
[1741919442117,0.33528957,82060.0,82059.0,0.0003384]
[1741919445185,0.03528957,82060.0,82059.0,0.0003384]
[1741919448918,0.016186,82060.0,82059.0,0.0003384]
[1741919449157,0.03529009,82060.0,82059.0,0.0003384]
[1741919450414,0.33545939,82060.0,82059.0,0.0003384]
[1741919453346,0.44577583,82060.0,82059.0,0.0003384]
[1741919453579,0.312186,82058.0,82054.0,0.0003384]
[1741919453780,0.012187,82054.0,82053.0,0.00026311]
[1741919453940,0.15102988,82054.0,82053.0,0.00035822]
[1741919454118,0.26845505,82054.0,82053.0,0.00035822]
[1741919454538,0.11742517,82054.0,82053.0,0.00035822]
[1741919454739,0.012187,82054.0,82053.0,0.00035822]
[1741919454940,0.013187,82054.0,82053.0,0.00035822]
[1741919456585,0.313187,82054.0,82053.0,0.00035822]
[1741919456943,0.313187,82054.0,82053.0,0.00015563]
[1741919457347,0.316187,82054.0,82053.0,0.00015563]
[1741919457576,0.43614789,82054.0,82053.0,0.00015563]
[1741919457747,0.43514789,82054.0,82053.0,0.00015563]
[1741919458379,0.43814789,82054.0,82053.0,0.00015563]
[1741919458783,0.43514789,82054.0,82053.0,0.00015563]
[1741919458978,0.45425476,82054.0,82053.0,0.00015563]
[1741919459184,0.45625476,82054.0,82053.0,0.00015563]
[1741919461061,0.45125476,82054.0,82053.0,0.00015563]
[1741919462801,0.45125476,82054.0,82046.0,0.0003378]
[1741919462802,0.012188,82047.0,82046.0,2.717e-05]
[1741919462998,0.012188,82047.0,82046.0,0.00043814]
[1741919462999,0.6383566,82047.0,82046.0,0.00043814]
[1741919464189,0.6433566,82047.0,82046.0,0.00043814]
[1741919465311,0.6473566,82047.0,82046.0,0.00043814]
[1741919465699,0.556019,82025.0,82024.0,0.0781]
[1741919465937,0.556019,82025.0,82024.0,0.08358217]
[1741919466765,0.57513014,82025.0,82024.0,0.0781]
[1741919467466,0.57513014,82025.0,82024.0,0.07789746]
[1741919468194,0.60659349,82025.0,82024.0,0.07789746]
[1741919468509,0.60659349,82025.0,82024.0,0.07989746]
[1741919468737,0.71845434,82025.0,82024.0,0.07789746]
[1741919469080,0.71945434,82025.0,82024.0,0.07789746]
[1741919469412,0.556025,82023.0,82022.0,0.0497]